fUSD/lending_fUSD_20241006
["ID","MTS","AMOUNT","RATE_DAILY","PERIOD"]
[339963318,1728229852036,-506.33909288,0.00038356,30]
[339963319,1728229852046,-665.54,0.00038356,30]
[339963320,1728229852055,-941.52,0.00038356,30]
[339963321,1728229852065,-500.0,0.00038356,30]
[339963322,1728229852073,-527.51732699,0.00038356,30]
[339963323,1728229852082,-500.0,0.00038356,30]
[339963324,1728229852091,-507.61096283,0.00038356,30]
[339963325,1728229852101,-500.0,0.00038356,30]
[339963326,1728229852110,-500.0,0.00038356,30]
[339963327,1728229852119,-500.0,0.00038356,30]
[339963328,1728229852128,-500.0,0.00038356,30]
[339963329,1728229852139,-503.16938006,0.00038356,30]
[339963330,1728229852148,-503.1187658,0.00038356,30]
[339963331,1728229852157,-500.0,0.00038356,30]
[339963332,1728229852167,-500.0,0.00038356,30]
[339963333,1728229852178,-500.0,0.00038356,30]
[339963334,1728229852187,-500.0,0.00038356,30]
[339963335,1728229852198,-500.0,0.00038356,30]
[339963336,1728229852207,-367.11214992,0.00038356,30]
[339963337,1728229852216,-500.0,0.00038356,30]
[339963338,1728229852225,-500.0,0.00038356,30]
[339963339,1728229852233,-502.83555779,0.00038356,30]
[339963340,1728229852242,-300.93144156,0.00038356,30]
[339963341,1728229852251,-500.0,0.00038356,30]
[339963342,1728229852261,-507.55886117,0.00038356,30]
[339963343,1728229852270,-502.9550077,0.00038356,30]
[339963344,1728229852279,-500.0,0.00038356,30]
[339963345,1728229852288,-512.02758308,0.00038356,30]
[339963346,1728229852297,-500.0,0.00038356,30]
[339963347,1728229852306,-509.40148073,0.00038356,30]
[339963348,1728229852315,-500.0,0.00038356,30]
[339963349,1728229852325,-20000.0,0.00038356,2]
[339963350,1728229852334,-500.0,0.00038356,30]
[339963351,1728229852342,-418.87197541,0.00038356,30]
[339963352,1728229852352,-502.71380528,0.00038356,30]
[339963353,1728229852360,-500.0,0.00038356,30]
[339963354,1728229852369,-500.0,0.00038356,30]
[339963355,1728229852378,-500.0,0.00038356,30]
[339963356,1728229852387,-537.9517953,0.00038356,30]
[339963357,1728229852397,-500.0,0.00038356,30]
[339963358,1728229852406,-500.0,0.00038356,30]
[339963359,1728229852416,-500.0,0.00038356,30]
[339963360,1728229852425,-506.64642687,0.00038356,30]
[339963361,1728229852436,-542.14294909,0.00038356,30]
[339963362,1728229852449,-509.01509344,0.00038356,30]
[339963363,1728229852459,-2076.5,0.00038356,30]
[339963364,1728229852468,-537.96,0.00038356,30]
[339963365,1728229852477,-506.06166577,0.00038356,30]
[339963366,1728229852486,-509.79765521,0.00038356,30]
[339963367,1728229852496,-500.0,0.00038356,30]
[339963368,1728229852505,-539.36473343,0.00038356,30]
[339963369,1728229852515,-510.95079323,0.00038356,30]
[339963370,1728229852524,-510.78010073,0.00038356,30]
[339963371,1728229852534,-505.48163706,0.00038356,30]
[339963372,1728229852542,-500.0,0.00038356,30]
[339963373,1728229852551,-504.23018253,0.00038356,30]
[339963374,1728229852561,-500.0,0.00038356,30]
[339963375,1728229852571,-512.69431698,0.00038356,30]
[339963376,1728229852581,-240.2843528,0.00038356,30]
[339963377,1728229852590,-500.0,0.00038356,30]
[339963378,1728229852599,-500.0,0.00038356,30]
[339963379,1728229852608,-500.0,0.00038356,30]
[339963380,1728229852618,-504.19541035,0.00038356,30]
[339963381,1728229852628,-502.32985129,0.00038356,30]
[339963382,1728229852638,-500.0,0.00038356,30]
[339963383,1728229852648,-500.0,0.00038356,30]
[339963384,1728229852657,-500.0,0.00038356,30]
[339963385,1728229852667,-500.0,0.00038356,30]
[339963386,1728229852677,-266.92741085,0.00038356,30]
[339963387,1728229852686,-508.45375582,0.00038356,30]
[339963388,1728229852699,-500.0,0.00038356,30]
[339963389,1728229852709,-500.0,0.00038356,30]
[339963390,1728229852718,-169.38286279,0.00038356,30]
[339963391,1728229852727,-506.19790305,0.00038356,30]
[339963392,1728229852737,-559.28,0.00038356,30]
[339963393,1728229852746,-500.0,0.00038356,30]
[339963394,1728229852755,-509.97852628,0.00038356,30]
[339963395,1728229852765,-500.0,0.00038356,30]
[339963396,1728229852774,-500.0,0.00038356,30]
[339963397,1728229852784,-504.56053864,0.00038356,30]
[339963398,1728229852793,-527.63420663,0.00038356,30]
[339963399,1728229852803,-503.26241311,0.00038356,30]
[339963400,1728229852813,-500.0,0.00038356,30]
[339963401,1728229852823,-507.13462729,0.00038356,30]
[339963402,1728229852832,-500.0,0.00038356,30]
[339963403,1728229852841,-503.1457815,0.00038356,30]
[339963404,1728229852851,-514.32944543,0.00038356,30]
[339963405,1728229852861,-507.26325036,0.00038356,30]
[339963406,1728229852872,-501.30293461,0.00038356,30]
[339963407,1728229852882,-506.31006203,0.00038356,30]
[339963408,1728229852891,-504.76396798,0.00038356,30]
[339963409,1728229852901,-500.0,0.00038356,30]
[339963410,1728229852910,-505.00566269,0.00038356,30]
[339963411,1728229852920,-510.65073992,0.00038356,30]
[339963412,1728229852930,-508.11473036,0.00038356,30]
[339963413,1728229852939,-508.19124243,0.00038356,30]
[339963414,1728229852951,-509.45762797,0.00038356,30]
[339963415,1728229852961,-507.9001021,0.00038356,30]
[339963416,1728229852972,-529.27124497,0.00038356,30]
[339963417,1728229852981,-762.58,0.00038356,30]
[339963418,1728229852991,-500.0,0.00038356,30]
[339963419,1728229853002,-500.0,0.00038356,30]
[339963420,1728229853012,-500.0,0.00038356,24]
[339963421,1728229853022,-500.0,0.00038356,30]
[339963422,1728229853032,-510.51363517,0.00038356,30]
[339963423,1728229853041,-357.16109985,0.00038356,30]
[339963424,1728229853051,-500.0,0.00038356,30]
[339963425,1728229853061,-500.0,0.00038356,30]
[339963426,1728229853071,-494.0,0.00038356,30]
[339963427,1728229853081,-500.0,0.00038356,30]
[339963428,1728229853091,-509.23016649,0.00038356,30]
[339963429,1728229853100,-503.76186263,0.00038356,30]
[339963430,1728229853110,-507.99345487,0.00038356,30]
[339963431,1728229853120,-504.51678427,0.00038356,30]
[339963432,1728229853131,-500.0,0.00038356,30]
[339963433,1728229853141,-530.50837878,0.00038356,30]
[339963434,1728229853151,-507.58011567,0.00038356,30]
[339963435,1728229853161,-500.0,0.00038356,30]
[339963436,1728229853171,-616.32655436,0.00038356,30]
[339963437,1728229853181,-505.56443753,0.00038356,30]
[339963438,1728229853192,-508.68100295,0.00038356,30]
[339963439,1728229853202,-576.5976071,0.00038356,30]
[339963440,1728229853212,-505.08892495,0.00038356,30]
[339963441,1728229853221,-483.36287016,0.00038356,30]
[339963442,1728229853230,-500.0,0.00038356,30]
[339963443,1728229853241,-564.00154266,0.00038356,30]
[339963444,1728229853251,-622.78539594,0.00038356,30]
[339963445,1728229853260,-607.42660667,0.00038356,30]
[339963446,1728229853269,-603.57525257,0.00038356,30]
[339963447,1728229853278,-500.0,0.00038356,30]
[339963448,1728229853289,-500.0,0.00038356,30]
[339963449,1728229853298,-500.0,0.00038356,30]
[339963450,1728229853308,-503.24399518,0.00038356,30]
[339963451,1728229853317,-500.0,0.00038356,30]
[339963452,1728229853327,-500.0,0.00038356,30]
[339963453,1728229853337,-500.0,0.00038356,30]
[339963454,1728229853346,-505.82900998,0.00038356,30]
[339963455,1728229853355,-500.0,0.00038356,30]
[339963456,1728229853365,-500.0,0.00038356,30]
[339963457,1728229853374,-500.0,0.00038356,30]
[339963458,1728229853384,-513.42191903,0.00038356,30]
[339963459,1728229853393,-500.0,0.00038356,30]
[339963460,1728229853404,-540.61721424,0.00038356,30]
[339963461,1728229853413,-178.16082533,0.00038356,30]
[339963462,1728229853423,-516.54564968,0.00038356,30]
[339963463,1728229853432,-500.0,0.00038356,30]
[339963464,1728229853441,-151.01825923,0.00038356,30]
[339963465,1728229853451,-411.72909917,0.00038356,30]
[339963466,1728229853460,-500.0,0.00038356,30]
[339963467,1728229853470,-151.5071728,0.00038356,30]
[339963468,1728229853481,-500.0,0.00038356,30]
[339963469,1728229853503,-511.5701805,0.00038356,30]
[339963470,1728229853591,-319.94016343,0.00038356,30]
[339963471,1728229853610,-500.0,0.00038356,30]
[339963472,1728229853619,-200.75343367,0.00038356,30]
[339963473,1728229853629,-540.40399524,0.00038356,30]
[339963474,1728229853638,-500.0,0.00038356,30]
[339963475,1728229853649,-1459.64,0.00038356,30]
[339963476,1728229853659,-439.91498521,0.00038356,30]
[339963477,1728229853669,-303.4158704,0.00038356,30]
[339963478,1728229853678,-500.0,0.00038356,30]
[339963479,1728229853688,-500.0,0.00038356,30]
[339963480,1728229853698,-500.0,0.00038356,30]
[339963481,1728229853707,-196.83524705,0.00038356,30]
[339963482,1728229853716,-201.39641501,0.00038356,30]
[339963483,1728229853725,-500.0,0.00038356,30]
[339963484,1728229853734,-502.78067777,0.00038356,30]
[339963485,1728229853743,-500.0,0.00038356,30]
[339963486,1728229853753,-396.02869098,0.00038356,30]
[339963487,1728229853762,-467.4384921,0.00038356,30]
[339963488,1728229853772,-1107.21,0.00038356,30]
[339963489,1728229853781,-510.10762599,0.00038356,30]
[339963490,1728229853790,-332.37609601,0.00038356,30]
[339963491,1728229853799,-500.0,0.00038356,30]
[339963492,1728229853809,-505.36617753,0.00038356,30]
[339963493,1728229853819,-500.0,0.00038356,30]
[339963494,1728229853828,-619.92,0.00038356,30]
[339963495,1728229853837,-561.98874146,0.00038356,30]
[339963496,1728229853847,-500.0,0.00038356,30]
[339963497,1728229853856,-500.0,0.00038356,30]
[339963498,1728229853866,-500.0,0.00038356,30]
[339963499,1728229853875,-165.30485786,0.00038356,30]
[339963500,1728229853885,-500.0,0.00038356,30]
[339963501,1728229853894,-500.0,0.00038356,30]
[339963502,1728229853905,-500.0,0.00038356,30]
[339963503,1728229853915,-500.0,0.00038356,30]
[339963504,1728229853924,-500.0,0.00038356,30]
[339963505,1728229853933,-161.10027858,0.00038356,30]
[339963506,1728229853944,-505.68163343,0.00038356,30]
[339963507,1728229853953,-505.30779337,0.00038356,30]
[339963508,1728229853963,-500.0,0.00038356,30]
[339963509,1728229853975,-569.49781449,0.00038356,30]
[339963510,1728229853984,-298.86617445,0.00038356,30]
[339963511,1728229853994,-211.2541178,0.00038356,30]
[339963512,1728229854003,-500.0,0.00038356,30]
[339963513,1728229854013,-500.0,0.00038356,30]
[339963514,1728229854022,-500.0,0.00038356,30]
[339963515,1728229854031,-500.0,0.00038356,30]
[339963516,1728229854040,-510.86782258,0.00038356,30]
[339963517,1728229854052,-500.0,0.00038356,30]
[339963518,1728229854061,-526.51845173,0.00038356,30]
[339963519,1728229854070,-500.0,0.00038356,30]
[339963520,1728229854079,-500.0,0.00038356,30]
[339963521,1728229854088,-500.0,0.00038356,30]
[339963522,1728229854098,-199.49324232,0.00038356,30]
[339963523,1728229854107,-500.0,0.00038356,30]
[339963524,1728229854116,-500.0,0.00038356,30]
[339963525,1728229854125,-194.6041463,0.00038356,30]
[339963526,1728229854134,-574.19172652,0.00038356,30]
[339963527,1728229854144,-520.9,0.00038356,30]
[339963528,1728229854153,-500.0,0.00038356,2]
[339963529,1728229854162,-517.6628614,0.00038356,30]
[339963530,1728229854171,-562.1350888,0.00038356,30]
[339963531,1728229854181,-500.0,0.00038356,30]
[339963532,1728229854190,-913.81,0.00038356,2]
[339963533,1728229854200,-247.9709775,0.000384,7]
[339963534,1728229854209,-5800.0,0.000384,120]
[339963535,1728229854218,-150.0,0.00038435,7]
[339963536,1728229854227,-2000.0,0.0003849,14]
[339963537,1728229854236,-500.0,0.00038556,3]
[339963538,1728229854246,-150.0,0.00038574,7]
[339963539,1728229854255,-247.9709775,0.00038613,7]
[339963540,1728229854265,-669.33,0.00038767,30]
[339963541,1728229854274,-500.39435629,0.00038767,30]
[339963542,1728229854284,-500.0,0.00038767,30]
[339963543,1728229854294,-500.0,0.00038767,30]
[339963544,1728229854303,-500.0,0.00038767,30]
[339963545,1728229854312,-151.0,0.00038767,14]
[339963546,1728229854321,-873.34,0.00038767,30]
[339963547,1728229854331,-834.06,0.00038767,30]
[339963548,1728229854340,-500.0,0.00038767,30]
[339963549,1728229854349,-500.0,0.00038767,30]
[339963550,1728229854358,-178.737317,0.00038767,14]
[339963551,1728229854367,-500.0,0.00038767,2]
[339963552,1728229854377,-300.0,0.00038767,30]
[339963553,1728229854386,-500.0,0.00038767,30]
[339963554,1728229854395,-500.0,0.00038767,30]
[339963555,1728229854405,-500.0,0.00038767,30]
[339963556,1728229854414,-500.0,0.00038767,3]
[339963557,1728229854424,-500.0,0.00038767,30]
[339963558,1728229854433,-500.0,0.00038767,30]
[339963559,1728229854443,-500.0,0.00038767,30]
[339963560,1728229854453,-500.0,0.00038767,30]
[339963561,1728229854463,-500.0,0.00038767,30]
[339963562,1728229854473,-890.77,0.00038767,30]
[339963563,1728229854483,-665.54,0.00038767,30]
[339963564,1728229854493,-941.52,0.00038767,30]
[339963565,1728229854502,-500.0,0.00038767,30]
[339963566,1728229854514,-151.0,0.00038767,14]
[339963567,1728229854524,-510.0535745,0.00038767,30]
[339963568,1728229854534,-500.0,0.00038767,30]
[339963569,1728229854545,-151.0,0.00038767,14]
[339963570,1728229854555,-151.0,0.00038767,14]
[339963571,1728229854564,-500.0,0.00038767,30]
[339963572,1728229854574,-454.81121486,0.00038767,30]
[339963573,1728229854583,-178.43463752,0.00038767,30]
[339963574,1728229854592,-500.0,0.00038767,30]
[339963575,1728229854601,-499.64650381,0.00038767,30]
[339963576,1728229854611,-501.69235179,0.00038767,30]
[339963577,1728229854620,-500.0,0.00038767,30]
[339963578,1728229854629,-500.0,0.00038767,30]
[339963579,1728229854639,-20000.0,0.00038767,2]
[339963580,1728229854648,-500.0,0.00038767,30]
[339963581,1728229854658,-500.0,0.00038767,30]
[339963582,1728229854667,-500.0,0.00038767,30]
[339963583,1728229854676,-500.0,0.00038767,30]
[339963584,1728229854686,-151.0,0.00038767,14]
[339963585,1728229854695,-535.69781257,0.00038767,30]
[339963586,1728229854704,-500.0,0.00038767,30]
[339963587,1728229854713,-151.0,0.00038767,14]
[339963588,1728229854722,-613.49994544,0.00038767,30]
[339963589,1728229854732,-2076.5,0.00038767,30]
[339963590,1728229854741,-537.96,0.00038767,30]
[339963591,1728229854751,-596.87421334,0.00038767,30]
[339963592,1728229854760,-500.0,0.00038767,30]
[339963593,1728229854769,-500.0,0.00038767,30]
[339963594,1728229854779,-500.0,0.00038767,30]
[339963595,1728229854788,-500.0,0.00038767,30]
[339963596,1728229854797,-500.0,0.00038767,30]
[339963597,1728229854806,-500.0,0.00038767,30]
[339963598,1728229854815,-156.61852639,0.00038767,30]
[339963599,1728229854824,-500.0,0.00038767,30]
[339963600,1728229854833,-151.0,0.00038767,14]
[339963601,1728229854843,-500.0,0.00038767,30]
[339963602,1728229854852,-500.0,0.00038767,30]
[339963603,1728229854861,-559.28,0.00038767,30]
[339963604,1728229854870,-500.0,0.00038767,30]
[339963605,1728229854879,-500.0,0.00038767,30]
[339963606,1728229854888,-500.0,0.00038767,30]
[339963607,1728229854897,-500.0,0.00038767,30]
[339963608,1728229854907,-199.82,0.00038767,30]
[339963609,1728229854915,-289.50474148,0.00038767,30]
[339963610,1728229854924,-762.58,0.00038767,30]
[339963611,1728229854933,-500.0,0.00038767,30]
[339963612,1728229854943,-172.73648251,0.00038767,30]
[339963613,1728229854954,-500.0,0.00038767,24]
[339963614,1728229854964,-259.4180901,0.00038767,30]
[339963615,1728229854977,-500.0,0.00038767,30]
[339963616,1728229854988,-151.0,0.00038767,14]
[339963617,1728229854997,-236.92357297,0.00038767,30]
[339963618,1728229855006,-188.26673577,0.00038767,30]
[339963619,1728229855015,-151.0,0.00038767,14]
[339963620,1728229855027,-500.0,0.00038767,30]
[339963621,1728229855039,-500.0,0.00038767,30]
[339963622,1728229855049,-500.0,0.00038767,30]
[339963623,1728229855058,-511.50523078,0.00038767,30]
[339963624,1728229855067,-500.0,0.00038767,30]
[339963625,1728229855077,-500.0,0.00038767,30]
[339963626,1728229855086,-349.92392269,0.00038767,30]
[339963627,1728229855095,-500.0,0.00038767,30]
[339963628,1728229855104,-500.0,0.00038767,30]
[339963629,1728229855115,-500.0,0.00038767,30]
[339963630,1728229855124,-500.0,0.00038767,30]
[339963631,1728229855132,-500.0,0.00038767,30]
[339963632,1728229855142,-500.0,0.00038767,30]
[339963633,1728229855151,-500.0,0.00038767,30]
[339963634,1728229855161,-500.0,0.00038767,30]
[339963635,1728229855171,-519.98187171,0.00038767,30]
[339963636,1728229855181,-525.36168056,0.00038767,30]
[339963637,1728229855191,-500.0,0.00038767,30]
[339963638,1728229855202,-1459.64,0.00038767,30]
[339963639,1728229855211,-507.56552221,0.00038767,30]
[339963640,1728229855221,-500.0,0.00038767,30]
[339963641,1728229855231,-289.42433803,0.00038767,30]
[339963642,1728229855242,-500.0,0.00038767,30]
[339963643,1728229855251,-500.0,0.00038767,30]
[339963644,1728229855262,-1107.21,0.00038767,30]
[339963645,1728229855271,-281.734022,0.00038767,14]
[339963646,1728229855280,-500.0,0.00038767,30]
[339963647,1728229855289,-151.0,0.00038767,14]
[339963648,1728229855298,-281.734022,0.00038767,14]
[339963649,1728229855310,-500.0,0.00038767,30]
[339963650,1728229855319,-619.92,0.00038767,30]
[339963651,1728229855328,-500.0,0.00038767,30]
[339963652,1728229855337,-500.0,0.00038767,30]
[339963653,1728229855346,-508.27759814,0.00038767,30]
[339963654,1728229855355,-151.0,0.00038767,14]
[339963655,1728229855365,-500.0,0.00038767,30]
[339963656,1728229855374,-500.0,0.00038767,30]
[339963657,1728229855383,-506.90434215,0.00038767,30]
[339963658,1728229855392,-500.0,0.00038767,30]
[339963659,1728229855401,-519.79564734,0.00038767,30]
[339963660,1728229855410,-613.34891491,0.00038767,30]
[339963661,1728229855419,-151.0,0.00038767,14]
[339963662,1728229855429,-151.0,0.00038767,14]
[339963663,1728229855438,-500.0,0.00038767,30]
[339963664,1728229855448,-500.0,0.00038767,30]
[339963665,1728229855457,-500.0,0.00038767,30]
[339963666,1728229855466,-457.31731485,0.00038767,30]
[339963667,1728229855475,-720.371028,0.00038767,14]
[339963668,1728229855484,-720.371028,0.00038767,14]
[339963669,1728229855493,-634.08255087,0.00038767,30]
[339963670,1728229855501,-500.0,0.00038767,30]
[339963671,1728229855590,-354.64399559,0.00038767,30]
[339963672,1728229855600,-500.0,0.00038767,30]
[339963673,1728229855609,-500.0,0.00038767,30]
[339963674,1728229855619,-500.0,0.00038767,30]
[339963675,1728229855628,-520.9,0.00038767,30]
[339963676,1728229855638,-500.0,0.00038767,2]
[339963677,1728229855647,-500.0,0.00038767,30]
[339963678,1728229855656,-913.81,0.00038767,2]
[339963679,1728229855666,-150.0,0.0003878,7]
[339963680,1728229855675,-282.341384,0.00038819,14]
[339963681,1728229855684,-282.341384,0.00038819,14]
[339963682,1728229855694,-151.710514,0.00038819,14]
[339963683,1728229855703,-586.626125,0.00038819,14]
[339963684,1728229855711,-586.626125,0.00038819,14]
[339963685,1728229855721,-151.0,0.00038819,14]
[339963686,1728229855730,-1481.300386,0.00038819,14]
[339963687,1728229855740,-1481.300386,0.00038819,14]
[339963688,1728229855749,-150.0,0.00038822,120]
[339963689,1728229855758,-247.9709775,0.00038826,7]
[339963690,1728229855768,-150.0,0.00038831,7]
[339963691,1728229855777,-150.0,0.00038978,7]
[339963692,1728229855786,-411.0,0.00038986,60]
[339963693,1728229855796,-50000.0,0.00039,29]
[339963694,1728229855805,-50000.0,0.00039,39]
[339963695,1728229855814,-900.0,0.00039,120]
[339963696,1728229855824,-151.0,0.00039,14]
[339963697,1728229855833,-151.0,0.00039,14]
[339963698,1728229855843,-151.0,0.00039,14]
[339963699,1728229855853,-950.0,0.00039,2]
[339963700,1728229855862,-259.61028,0.00039,14]
[339963701,1728229855871,-259.61028,0.00039,14]
[339963702,1728229855881,-151.0,0.00039,14]
[339963703,1728229855891,-151.0,0.00039,14]
[339963704,1728229855901,-152.9,0.00039,2]
[339963705,1728229855910,-247.9709775,0.00039039,7]
[339963706,1728229855919,-150.0,0.00039088,7]
[339963707,1728229855929,-150.0,0.00039126,7]
[339963708,1728229855938,-150.0,0.00039145,7]
[339963709,1728229855948,-500.0,0.00039178,30]
[339963710,1728229855958,-500.0,0.00039178,30]
[339963711,1728229855968,-500.0,0.00039178,30]
[339963712,1728229855981,-873.34,0.00039178,30]
[339963713,1728229855990,-834.06,0.00039178,30]
[339963714,1728229855999,-500.0,0.00039178,30]
[339963715,1728229856009,-500.0,0.00039178,30]
[339963716,1728229856019,-586.6391498,0.00039178,2]
[339963717,1728229856030,-437.25369763,0.00039178,30]
[339963718,1728229856039,-500.0,0.00039178,30]
[339963719,1728229856050,-500.0,0.00039178,30]
[339963720,1728229856059,-500.0,0.00039178,30]
[339963721,1728229856068,-500.0,0.00039178,3]
[339963722,1728229856077,-500.0,0.00039178,30]
[339963723,1728229856088,-500.0,0.00039178,30]
[339963724,1728229856097,-500.0,0.00039178,30]
[339963725,1728229856106,-500.0,0.00039178,30]
[339963726,1728229856115,-500.0,0.00039178,30]
[339963727,1728229856124,-890.77,0.00039178,30]
[339963728,1728229856133,-665.54,0.00039178,30]
[339963729,1728229856142,-941.52,0.00039178,30]
[339963730,1728229856152,-500.0,0.00039178,30]
[339963731,1728229856162,-500.0,0.00039178,30]
[339963732,1728229856172,-500.0,0.00039178,30]
[339963733,1728229856180,-500.0,0.00039178,30]
[339963734,1728229856190,-439.8984163,0.00039178,30]
[339963735,1728229856201,-308.25702945,0.00039178,30]
[339963736,1728229856210,-20119.77532555,0.00039178,2]
[339963737,1728229856220,-500.0,0.00039178,30]
[339963738,1728229856231,-500.0,0.00039178,30]
[339963739,1728229856242,-514.76280209,0.00039178,30]
[339963740,1728229856251,-500.0,0.00039178,30]
[339963741,1728229856261,-500.0,0.00039178,30]
[339963742,1728229856270,-2076.5,0.00039178,30]
[339963743,1728229856279,-537.96,0.00039178,30]
[339963744,1728229856289,-500.0,0.00039178,30]
[339963745,1728229856298,-500.0,0.00039178,30]
[339963746,1728229856306,-500.0,0.00039178,30]
[339963747,1728229856316,-500.0,0.00039178,30]
[339963748,1728229856325,-500.0,0.00039178,30]
[339963749,1728229856334,-500.0,0.00039178,30]
[339963750,1728229856343,-500.0,0.00039178,30]
[339963751,1728229856352,-500.0,0.00039178,30]
[339963752,1728229856361,-569.09591379,0.00039178,30]
[339963753,1728229856370,-559.28,0.00039178,30]
[339963754,1728229856379,-500.0,0.00039178,30]
[339963755,1728229856388,-500.0,0.00039178,30]
[339963756,1728229856397,-500.0,0.00039178,30]
[339963757,1728229856406,-500.0,0.00039178,30]
[339963758,1728229856415,-762.58,0.00039178,30]
[339963759,1728229856425,-500.0,0.00039178,30]
[339963760,1728229856435,-322.75029146,0.00039178,24]
[339963761,1728229856446,-258.39302442,0.00039178,30]
[339963762,1728229856455,-500.0,0.00039178,30]
[339963763,1728229856464,-500.0,0.00039178,30]
[339963764,1728229856473,-500.0,0.00039178,30]
[339963765,1728229856482,-500.0,0.00039178,30]
[339963766,1728229856491,-285.68966404,0.00039178,30]
[339963767,1728229856500,-246.21333429,0.00039178,30]
[339963768,1728229856510,-508.7373919,0.00039178,30]
[339963769,1728229856519,-500.0,0.00039178,30]
[339963770,1728229856529,-500.0,0.00039178,30]
[339963771,1728229856539,-197.97097436,0.00039178,30]
[339963772,1728229856549,-500.0,0.00039178,30]
[339963773,1728229856558,-500.0,0.00039178,30]
[339963774,1728229856567,-183.94228567,0.00039178,30]
[339963775,1728229856577,-500.0,0.00039178,30]
[339963776,1728229856587,-1459.64,0.00039178,30]
[339963777,1728229856597,-500.0,0.00039178,30]
[339963778,1728229856608,-500.0,0.00039178,30]
[339963779,1728229856617,-222.33096941,0.00039178,30]
[339963780,1728229856627,-1107.21,0.00039178,30]
[339963781,1728229856636,-199.98991601,0.00039178,30]
[339963782,1728229856648,-365.75499321,0.00039178,30]
[339963783,1728229856658,-619.92,0.00039178,30]
[339963784,1728229856667,-500.0,0.00039178,30]
[339963785,1728229856676,-500.0,0.00039178,30]
[339963786,1728229856685,-500.0,0.00039178,30]
[339963787,1728229856694,-500.0,0.00039178,30]
[339963788,1728229856704,-196.70087103,0.00039178,30]
[339963789,1728229856713,-500.0,0.00039178,30]
[339963790,1728229856723,-500.0,0.00039178,30]
[339963791,1728229856732,-500.0,0.00039178,30]
[339963792,1728229856741,-500.0,0.00039178,30]
[339963793,1728229856750,-500.0,0.00039178,30]
[339963794,1728229856759,-500.0,0.00039178,30]
[339963795,1728229856768,-500.0,0.00039178,30]
[339963796,1728229856778,-520.9,0.00039178,30]
[339963797,1728229856787,-500.0,0.00039178,2]
[339963798,1728229856797,-500.0,0.00039178,30]
[339963799,1728229856806,-913.81,0.00039178,2]
[339963800,1728229856816,-2936.0,0.000392,2]
[339963801,1728229856826,-247.9709775,0.00039251,7]
[339963802,1728229856835,-150.0,0.00039345,7]
[339963803,1728229856844,-247.9709775,0.00039464,7]
[339963804,1728229856853,-150.0,0.00039471,7]
[339963805,1728229856862,-500.0,0.00039589,30]
[339963806,1728229856871,-500.0,0.00039589,30]
[339963807,1728229856880,-500.0,0.00039589,30]
[339963808,1728229856890,-873.34,0.00039589,30]
[339963809,1728229856899,-834.06,0.00039589,30]
[339963810,1728229856908,-500.0,0.00039589,30]
[339963811,1728229856918,-500.0,0.00039589,30]
[339963812,1728229856928,-182.14815765,0.00039589,30]
[339963813,1728229856938,-500.0,0.00039589,30]
[339963814,1728229856947,-500.0,0.00039589,30]
[339963815,1728229856957,-500.0,0.00039589,3]
[339963816,1728229856968,-500.0,0.00039589,30]
[339963817,1728229856979,-500.0,0.00039589,30]